[Event "Live Chess"]
[Site "Chess.com"]
[Date "2011.01.28"]
[Round "-"]
[White "hipposcottimus"]
[Black "Renidadam"]
[Result "0-1"]
[CurrentPosition "7r/p1k1bppp/4p3/4P3/K1N2P2/2r5/8/8 w - -"]
[Timezone "UTC"]
[ECO "B20"]
[ECOUrl "https://www.chess.com/openings/Sicilian-Defense"]
[UTCDate "2011.01.28"]
[UTCTime "23:21:20"]
[WhiteElo "1552"]
[BlackElo "1663"]
[TimeControl "60"]
[Termination "Renidadam won on time"]
[StartTime "23:21:20"]
[EndDate "2011.01.28"]
[EndTime "23:23:35"]
[Link "https://www.chess.com/game/live/92424835"]

1. e4 {[%clk 0:01:00]} 1... c5 {[%clk 0:01:00]} 2. Bb5 {[%clk 0:00:58.3]} 2... Nc6 {[%clk 0:00:59.7]} 3. Bxc6 {[%clk 0:00:57.7]} 3... bxc6 {[%clk 0:00:59.2]} 4. c4 {[%clk 0:00:57.5]} 4... Qa5 {[%clk 0:00:58.8]} 5. Nc3 {[%clk 0:00:57.2]} 5... Qb4 {[%clk 0:00:58]} 6. a3 {[%clk 0:00:54.9]} 6... Qxc4 {[%clk 0:00:57.2]} 7. d3 {[%clk 0:00:54.4]} 7... Qe6 {[%clk 0:00:53.5]} 8. f4 {[%clk 0:00:51]} 8... d5 {[%clk 0:00:52.8]} 9. Nf3 {[%clk 0:00:49.6]} 9... dxe4 {[%clk 0:00:51.6]} 10. dxe4 {[%clk 0:00:48.9]} 10... c4 {[%clk 0:00:50.4]} 11. O-O {[%clk 0:00:47.7]} 11... Ba6 {[%clk 0:00:48.6]} 12. Be3 {[%clk 0:00:46.9]} 12... Nf6 {[%clk 0:00:46.2]} 13. Nd4 {[%clk 0:00:46.4]} 13... Qg4 {[%clk 0:00:43.7]} 14. e5 {[%clk 0:00:45.8]} 14... Qxd1 {[%clk 0:00:42.5]} 15. Rfxd1 {[%clk 0:00:43.4]} 15... Nd5 {[%clk 0:00:41.8]} 16. Re1 {[%clk 0:00:37.5]} 16... Nxe3 {[%clk 0:00:40.5]} 17. Rxe3 {[%clk 0:00:36.1]} 17... Bb7 {[%clk 0:00:39.8]} 18. b3 {[%clk 0:00:33.7]} 18... e6 {[%clk 0:00:39.2]} 19. bxc4 {[%clk 0:00:32.3]} 19... Bc5 {[%clk 0:00:38.2]} 20. Rd1 {[%clk 0:00:29.7]} 20... O-O-O {[%clk 0:00:35.3]} 21. Red3 {[%clk 0:00:28.3]} 21... Ba6 {[%clk 0:00:33.4]} 22. Kf1 {[%clk 0:00:24.4]} 22... Bxc4 {[%clk 0:00:32.5]} 23. Nxc6 {[%clk 0:00:19.8]} 23... Rxd3 {[%clk 0:00:29.4]} 24. Rd2 {[%clk 0:00:18.8]} 24... Rxd2+ {[%clk 0:00:28.1]} 25. Ke1 {[%clk 0:00:18.5]} 25... Rc2 {[%clk 0:00:27]} 26. Ne7+ {[%clk 0:00:16.6]} 26... Kc7 {[%clk 0:00:25.7]} 27. Na4 {[%clk 0:00:15.9]} 27... Bxe7 {[%clk 0:00:24.5]} 28. Kd1 {[%clk 0:00:14.5]} 28... Ra2 {[%clk 0:00:22.5]} 29. Kc1 {[%clk 0:00:12.6]} 29... Rxa3 {[%clk 0:00:21.7]} 30. Nb2 {[%clk 0:00:12.1]} 30... Rc3+ {[%clk 0:00:19.4]} 31. Kb1 {[%clk 0:00:10.9]} 31... Bb3 {[%clk 0:00:18.5]} 32. Nd1 {[%clk 0:00:08.7]} 32... Rd3 {[%clk 0:00:15.9]} 33. Nf2 {[%clk 0:00:06.2]} 33... Rc3 {[%clk 0:00:13.4]} 34. Kb2 {[%clk 0:00:04.5]} 34... Re3 {[%clk 0:00:11.7]} 35. Ng4 {[%clk 0:00:02.6]} 35... Re2+ {[%clk 0:00:10.2]} 36. Kxb3 {[%clk 0:00:01.8]} 36... Rxg2 {[%clk 0:00:09.3]} 37. Ne3 {[%clk 0:00:01.2]} 37... Rxh2 {[%clk 0:00:08]} 38. Nc4 {[%clk 0:00:00.5]} 38... Rh3+ {[%clk 0:00:07]} 39. Ka4 {[%clk 0:00:00.2]} 39... Rc3 {[%clk 0:00:05]} 0-1

[Event "Live Chess"]
[Site "Chess.com"]
[Date "2011.01.28"]
[Round "-"]
[White "Renidadam"]
[Black "hipposcottimus"]
[Result "0-1"]
[CurrentPosition "6k1/p1p3pp/1p6/5r2/8/6K1/PP4PP/3q4 w - -"]
[Timezone "UTC"]
[ECO "C20"]
[ECOUrl "https://www.chess.com/openings/Kings-Pawn-Opening-1...e5"]
[UTCDate "2011.01.28"]
[UTCTime "23:18:48"]
[WhiteElo "1657"]
[BlackElo "1558"]
[TimeControl "60"]
[Termination "hipposcottimus won on time"]
[StartTime "23:18:48"]
[EndDate "2011.01.28"]
[EndTime "23:20:59"]
[Link "https://www.chess.com/game/live/92424176"]

1. e4 {[%clk 0:01:00]} 1... e5 {[%clk 0:01:00]} 2. Be2 {[%clk 0:00:58.1]} 2... Nc6 {[%clk 0:00:58.7]} 3. d3 {[%clk 0:00:57.5]} 3... Nf6 {[%clk 0:00:58]} 4. Be3 {[%clk 0:00:56.9]} 4... d5 {[%clk 0:00:57.3]} 5. exd5 {[%clk 0:00:55.5]} 5... Nxd5 {[%clk 0:00:56.9]} 6. Bd2 {[%clk 0:00:53.5]} 6... Bc5 {[%clk 0:00:56.1]} 7. Nf3 {[%clk 0:00:52.8]} 7... O-O {[%clk 0:00:50.7]} 8. c4 {[%clk 0:00:52.1]} 8... Nde7 {[%clk 0:00:48.1]} 9. O-O {[%clk 0:00:51]} 9... f5 {[%clk 0:00:47]} 10. Nc3 {[%clk 0:00:48.8]} 10... e4 {[%clk 0:00:45.8]} 11. dxe4 {[%clk 0:00:46.8]} 11... Nd4 {[%clk 0:00:41.6]} 12. exf5 {[%clk 0:00:43.8]} 12... Nxf3+ {[%clk 0:00:40.2]} 13. Bxf3 {[%clk 0:00:42.4]} 13... Nxf5 {[%clk 0:00:39.9]} 14. Qe2 {[%clk 0:00:40.3]} 14... Re8 {[%clk 0:00:38.4]} 15. Be3 {[%clk 0:00:37.1]} 15... Nd4 {[%clk 0:00:31.9]} 16. Qd1 {[%clk 0:00:33.3]} 16... Nxf3+ {[%clk 0:00:29]} 17. Qxf3 {[%clk 0:00:32.3]} 17... Bxe3 {[%clk 0:00:26.8]} 18. fxe3 {[%clk 0:00:31.4]} 18... b6 {[%clk 0:00:23.2]} 19. Qf8+ {[%clk 0:00:30]} 19... Rxf8 {[%clk 0:00:20.6]} 20. Rxf8+ {[%clk 0:00:28.4]} 20... Qxf8 {[%clk 0:00:20.2]} 21. Rf1 {[%clk 0:00:27.1]} 21... Qc5 {[%clk 0:00:17.7]} 22. Ne4 {[%clk 0:00:24.5]} 22... Qxe3+ {[%clk 0:00:16]} 23. Nf2 {[%clk 0:00:23.9]} 23... Qe2 {[%clk 0:00:15]} 24. Ng4 {[%clk 0:00:21.6]} 24... Qxc4 {[%clk 0:00:11.7]} 25. Ne3 {[%clk 0:00:19.3]} 25... Qd3 {[%clk 0:00:09.2]} 26. Nd1 {[%clk 0:00:13.9]} 26... Ba6 {[%clk 0:00:08.4]} 27. Re1 {[%clk 0:00:11.8]} 27... Qd2 {[%clk 0:00:07.3]} 28. Rf1 {[%clk 0:00:03.7]} 28... Bxf1 {[%clk 0:00:06]} 29. Kxf1 {[%clk 0:00:02.6]} 29... Qxd1+ {[%clk 0:00:05.4]} 30. Kf2 {[%clk 0:00:02.1]} 30... Rf8+ {[%clk 0:00:04.7]} 31. Kg3 {[%clk 0:00:01.4]} 31... Rf5 {[%clk 0:00:03.4]} 0-1

[Event "Live Chess"]
[Site "Chess.com"]
[Date "2011.01.28"]
[Round "-"]
[White "hipposcottimus"]
[Black "JetFire"]
[Result "1-0"]
[CurrentPosition "1Q3k2/8/5Kp1/5pr1/8/8/P5PP/8 b - -"]
[Timezone "UTC"]
[ECO "B52"]
[ECOUrl "https://www.chess.com/openings/Sicilian-Defense-Canal-Main-Line"]
[UTCDate "2011.01.28"]
[UTCTime "23:15:45"]
[WhiteElo "1546"]
[BlackElo "1627"]
[TimeControl "60"]
[Termination "hipposcottimus won by checkmate"]
[StartTime "23:15:45"]
[EndDate "2011.01.28"]
[EndTime "23:18:00"]
[Link "https://www.chess.com/game/live/92423425"]

1. e4 {[%clk 0:01:00]} 1... c5 {[%clk 0:01:00]} 2. Nf3 {[%clk 0:00:59.4]} 2... d6 {[%clk 0:00:59.6]} 3. Bb5+ {[%clk 0:00:58.8]} 3... Bd7 {[%clk 0:00:58.2]} 4. Bc4 {[%clk 0:00:58.5]} 4... Bc6 {[%clk 0:00:56.7]} 5. Ng5 {[%clk 0:00:57.6]} 5... e6 {[%clk 0:00:56.2]} 6. Qf3 {[%clk 0:00:53.2]} 6... Nf6 {[%clk 0:00:54.7]} 7. e5 {[%clk 0:00:52.3]} 7... dxe5 {[%clk 0:00:53.6]} 8. d3 {[%clk 0:00:51.2]} 8... Bd6 {[%clk 0:00:52.7]} 9. O-O {[%clk 0:00:49.8]} 9... Bxf3 {[%clk 0:00:51.8]} 10. Ne4 {[%clk 0:00:48.1]} 10... Bxe4 {[%clk 0:00:50.3]} 11. dxe4 {[%clk 0:00:47.8]} 11... Nxe4 {[%clk 0:00:49.9]} 12. f3 {[%clk 0:00:47.6]} 12... Nf6 {[%clk 0:00:48]} 13. Nc3 {[%clk 0:00:47.4]} 13... O-O {[%clk 0:00:47.3]} 14. Nb5 {[%clk 0:00:46.8]} 14... Nc6 {[%clk 0:00:46.7]} 15. Nxd6 {[%clk 0:00:45.8]} 15... Qxd6 {[%clk 0:00:45.1]} 16. Be3 {[%clk 0:00:45.2]} 16... e4 {[%clk 0:00:44.5]} 17. c3 {[%clk 0:00:43.8]} 17... exf3 {[%clk 0:00:43.4]} 18. Rxf3 {[%clk 0:00:43.1]} 18... Ng4 {[%clk 0:00:42.8]} 19. Bf4 {[%clk 0:00:42.8]} 19... Qd8 {[%clk 0:00:38.2]} 20. Bb5 {[%clk 0:00:42.4]} 20... Qh4 {[%clk 0:00:36.3]} 21. Bg3 {[%clk 0:00:40.2]} 21... Qg5 {[%clk 0:00:34]} 22. Raf1 {[%clk 0:00:37.3]} 22... a6 {[%clk 0:00:32.7]} 23. Bd6 {[%clk 0:00:32.7]} 23... Rfd8 {[%clk 0:00:30.1]} 24. Bxc6 {[%clk 0:00:31.1]} 24... Rxd6 {[%clk 0:00:28.7]} 25. Bxb7 {[%clk 0:00:30.5]} 25... Rad8 {[%clk 0:00:28.3]} 26. Be4 {[%clk 0:00:29.2]} 26... Ne3 {[%clk 0:00:26.1]} 27. Rg3 {[%clk 0:00:26]} 27... Qe5 {[%clk 0:00:22.2]} 28. Rxe3 {[%clk 0:00:21.4]} 28... Rd1 {[%clk 0:00:20.4]} 29. Bxh7+ {[%clk 0:00:19.3]} 29... Kxh7 {[%clk 0:00:18.5]} 30. Rxe5 {[%clk 0:00:19]} 30... f6 {[%clk 0:00:17.3]} 31. Rxe6 {[%clk 0:00:17.9]} 31... R1d6 {[%clk 0:00:15.3]} 32. Rfe1 {[%clk 0:00:16.7]} 32... Rxe6 {[%clk 0:00:14.2]} 33. Rxe6 {[%clk 0:00:16.4]} 33... Rg8 {[%clk 0:00:13.6]} 34. Kf2 {[%clk 0:00:15.7]} 34... Kg6 {[%clk 0:00:13.1]} 35. Rxa6 {[%clk 0:00:15.3]} 35... Kf7 {[%clk 0:00:12.5]} 36. Rc6 {[%clk 0:00:14.8]} 36... g6 {[%clk 0:00:12.1]} 37. Rxc5 {[%clk 0:00:14.2]} 37... f5 {[%clk 0:00:11.7]} 38. Rc7+ {[%clk 0:00:13.7]} 38... Kf8 {[%clk 0:00:09.7]} 39. b4 {[%clk 0:00:13.4]} 39... Rg7 {[%clk 0:00:09.3]} 40. b5 {[%clk 0:00:13.1]} 40... Rxc7 {[%clk 0:00:08.5]} 41. b6 {[%clk 0:00:12.8]} 41... Rxc3 {[%clk 0:00:08.2]} 42. b7 {[%clk 0:00:12.2]} 42... Rc2+ {[%clk 0:00:07.8]} 43. Ke3 {[%clk 0:00:10.8]} 43... Rc3+ {[%clk 0:00:05.8]} 44. Kf4 {[%clk 0:00:10.2]} 44... Rc4+ {[%clk 0:00:04.5]} 45. Kg5 {[%clk 0:00:09.3]} 45... Rg4+ {[%clk 0:00:03.7]} 46. Kf6 {[%clk 0:00:08]} 46... Rg5 {[%clk 0:00:02.9]} 47. b8=Q# {[%clk 0:00:06.3]} 1-0

[Event "Live Chess"]
[Site "Chess.com"]
[Date "2011.01.28"]
[Round "-"]
[White "JetFire"]
[Black "hipposcottimus"]
[Result "1-0"]
[CurrentPosition "r6k/p6p/1p1b1Rn1/2p5/3P2p1/3q3P/P2B1QP1/5RK1 b - -"]
[Timezone "UTC"]
[ECO "C31"]
[ECOUrl "https://www.chess.com/openings/Kings-Gambit-Declined-Falkbeer-Accepted-Staunton-Charousek-Gambit-4...Nf6-5.Nc3"]
[UTCDate "2011.01.28"]
[UTCTime "23:13:31"]
[WhiteElo "1636"]
[BlackElo "1535"]
[TimeControl "60"]
[Termination "JetFire won on time"]
[StartTime "23:13:31"]
[EndDate "2011.01.28"]
[EndTime "23:15:28"]
[Link "https://www.chess.com/game/live/92422867"]

1. e4 {[%clk 0:01:00]} 1... e5 {[%clk 0:01:00]} 2. f4 {[%clk 0:00:59.5]} 2... d5 {[%clk 0:00:58.6]} 3. exd5 {[%clk 0:00:56.9]} 3... e4 {[%clk 0:00:58.1]} 4. Nc3 {[%clk 0:00:52.5]} 4... Nf6 {[%clk 0:00:57.6]} 5. d3 {[%clk 0:00:50.6]} 5... Nxd5 {[%clk 0:00:55.8]} 6. d4 {[%clk 0:00:49.6]} 6... Nxc3 {[%clk 0:00:54.5]} 7. bxc3 {[%clk 0:00:48.8]} 7... Bf5 {[%clk 0:00:53.3]} 8. Bc4 {[%clk 0:00:47.9]} 8... Bd6 {[%clk 0:00:52.6]} 9. Ne2 {[%clk 0:00:46.4]} 9... O-O {[%clk 0:00:51.6]} 10. O-O {[%clk 0:00:45.9]} 10... Bg4 {[%clk 0:00:50.5]} 11. Qe1 {[%clk 0:00:44.2]} 11... Kh8 {[%clk 0:00:43.9]} 12. Ng3 {[%clk 0:00:43.4]} 12... f5 {[%clk 0:00:42.3]} 13. Rb1 {[%clk 0:00:39.3]} 13... Qe8 {[%clk 0:00:38.6]} 14. Be2 {[%clk 0:00:38.9]} 14... b6 {[%clk 0:00:33.6]} 15. Bxg4 {[%clk 0:00:37.7]} 15... fxg4 {[%clk 0:00:33.3]} 16. Nxe4 {[%clk 0:00:37.1]} 16... Nc6 {[%clk 0:00:32.4]} 17. Be3 {[%clk 0:00:35.3]} 17... Ne7 {[%clk 0:00:28.5]} 18. Ng3 {[%clk 0:00:34.1]} 18... Ng6 {[%clk 0:00:25]} 19. f5 {[%clk 0:00:33.5]} 19... Nh4 {[%clk 0:00:20.6]} 20. f6 {[%clk 0:00:32.2]} 20... gxf6 {[%clk 0:00:18.8]} 21. Nh5 {[%clk 0:00:28.9]} 21... Ng6 {[%clk 0:00:18.3]} 22. Nxf6 {[%clk 0:00:27.4]} 22... Rxf6 {[%clk 0:00:17.4]} 23. Rxf6 {[%clk 0:00:26.5]} 23... Qc6 {[%clk 0:00:12.4]} 24. Qf2 {[%clk 0:00:21.8]} 24... Qxc3 {[%clk 0:00:11.2]} 25. Re1 {[%clk 0:00:19.1]} 25... Qxc2 {[%clk 0:00:09.9]} 26. Bd2 {[%clk 0:00:18.3]} 26... Qd3 {[%clk 0:00:05.8]} 27. Rf1 {[%clk 0:00:16.7]} 27... c5 {[%clk 0:00:01.1]} 28. h3 {[%clk 0:00:15.9]} 1-0

[Event "Live Chess"]
[Site "Chess.com"]
[Date "2011.01.28"]
[Round "-"]
[White "TimArnett"]
[Black "hipposcottimus"]
[Result "0-1"]
[CurrentPosition "2n2r1k/p2b2pp/8/p1p1Np2/1r6/1B1PR1P1/2P4P/2K1R3 w - -"]
[Timezone "UTC"]
[ECO "A02"]
[ECOUrl "https://www.chess.com/openings/Birds-Opening-1...Nf6"]
[UTCDate "2011.01.28"]
[UTCTime "23:10:25"]
[WhiteElo "1556"]
[BlackElo "1541"]
[TimeControl "60"]
[Termination "hipposcottimus won on time"]
[StartTime "23:10:25"]
[EndDate "2011.01.28"]
[EndTime "23:12:27"]
[Link "https://www.chess.com/game/live/92422041"]

1. f4 {[%clk 0:01:00]} 1... Nf6 {[%clk 0:01:00]} 2. d3 {[%clk 0:00:44.9]} 2... d5 {[%clk 0:00:49.7]} 3. Nc3 {[%clk 0:00:41.7]} 3... d4 {[%clk 0:00:47.3]} 4. Ne4 {[%clk 0:00:40.7]} 4... e6 {[%clk 0:00:44.2]} 5. Nxf6+ {[%clk 0:00:39.2]} 5... Qxf6 {[%clk 0:00:43.9]} 6. Bd2 {[%clk 0:00:38]} 6... Bd6 {[%clk 0:00:42.6]} 7. e4 {[%clk 0:00:37.2]} 7... Bxf4 {[%clk 0:00:41.7]} 8. Bxf4 {[%clk 0:00:35.4]} 8... Qxf4 {[%clk 0:00:41.1]} 9. Ne2 {[%clk 0:00:33.4]} 9... Qe3 {[%clk 0:00:40.5]} 10. Qd2 {[%clk 0:00:31.8]} 10... O-O {[%clk 0:00:37.7]} 11. Qxe3 {[%clk 0:00:30.6]} 11... dxe3 {[%clk 0:00:37.4]} 12. O-O-O {[%clk 0:00:29]} 12... f5 {[%clk 0:00:37.1]} 13. exf5 {[%clk 0:00:27.5]} 13... exf5 {[%clk 0:00:36.8]} 14. g3 {[%clk 0:00:26.3]} 14... Nc6 {[%clk 0:00:34.3]} 15. Bg2 {[%clk 0:00:25.5]} 15... Nb4 {[%clk 0:00:32.3]} 16. a3 {[%clk 0:00:23.9]} 16... Na6 {[%clk 0:00:31.1]} 17. Bd5+ {[%clk 0:00:22.2]} 17... Kh8 {[%clk 0:00:28.4]} 18. Bc4 {[%clk 0:00:21.4]} 18... Nc5 {[%clk 0:00:27]} 19. b4 {[%clk 0:00:19.9]} 19... Na4 {[%clk 0:00:25.6]} 20. Bb3 {[%clk 0:00:18.6]} 20... Nb6 {[%clk 0:00:24.9]} 21. a4 {[%clk 0:00:14.9]} 21... Bd7 {[%clk 0:00:20.8]} 22. a5 {[%clk 0:00:14]} 22... Nc8 {[%clk 0:00:20.4]} 23. Nd4 {[%clk 0:00:12]} 23... c6 {[%clk 0:00:19.3]} 24. Rde1 {[%clk 0:00:09.6]} 24... c5 {[%clk 0:00:16.9]} 25. Nf3 {[%clk 0:00:08.1]} 25... b6 {[%clk 0:00:16.1]} 26. Rxe3 {[%clk 0:00:06.6]} 26... bxa5 {[%clk 0:00:15]} 27. b5 {[%clk 0:00:05]} 27... Rb8 {[%clk 0:00:14.3]} 28. Rhe1 {[%clk 0:00:02.9]} 28... Rxb5 {[%clk 0:00:13.2]} 29. Ne5 {[%clk 0:00:01.2]} 29... Rb4 {[%clk 0:00:12.2]} 0-1

[Event "Live Chess"]
[Site "Chess.com"]
[Date "2011.01.28"]
[Round "-"]
[White "hipposcottimus"]
[Black "TimArnett"]
[Result "1-0"]
[CurrentPosition "7r/4rk2/5pp1/n2q4/1p3Q2/8/P5PP/5RK1 b - -"]
[Timezone "UTC"]
[ECO "B00"]
[ECOUrl "https://www.chess.com/openings/Owens-Defense"]
[UTCDate "2011.01.28"]
[UTCTime "23:07:47"]
[WhiteElo "1541"]
[BlackElo "1556"]
[TimeControl "60"]
[Termination "hipposcottimus won on time"]
[StartTime "23:07:47"]
[EndDate "2011.01.28"]
[EndTime "23:09:59"]
[Link "https://www.chess.com/game/live/92421398"]

1. e4 {[%clk 0:01:00]} 1... b6 {[%clk 0:01:00]} 2. Nf3 {[%clk 0:00:59.6]} 2... Bb7 {[%clk 0:00:59.7]} 3. Nc3 {[%clk 0:00:56.6]} 3... d6 {[%clk 0:00:59.4]} 4. d4 {[%clk 0:00:56.2]} 4... Nd7 {[%clk 0:00:59.2]} 5. d5 {[%clk 0:00:55.7]} 5... e6 {[%clk 0:00:58.9]} 6. Bc4 {[%clk 0:00:55]} 6... exd5 {[%clk 0:00:57.8]} 7. exd5 {[%clk 0:00:54.6]} 7... Be7 {[%clk 0:00:56.1]} 8. O-O {[%clk 0:00:54.2]} 8... Bf6 {[%clk 0:00:55.4]} 9. Ne4 {[%clk 0:00:53.8]} 9... Be5 {[%clk 0:00:53.9]} 10. Nfg5 {[%clk 0:00:50.2]} 10... f6 {[%clk 0:00:51.2]} 11. Nf3 {[%clk 0:00:48.7]} 11... c5 {[%clk 0:00:47.5]} 12. Nxe5 {[%clk 0:00:47.6]} 12... Nxe5 {[%clk 0:00:46.2]} 13. f4 {[%clk 0:00:43.2]} 13... Nxc4 {[%clk 0:00:44.9]} 14. b3 {[%clk 0:00:40.8]} 14... Na5 {[%clk 0:00:42.1]} 15. b4 {[%clk 0:00:39.1]} 15... cxb4 {[%clk 0:00:40.6]} 16. c4 {[%clk 0:00:34.6]} 16... Ba6 {[%clk 0:00:39.3]} 17. Be3 {[%clk 0:00:26.9]} 17... Bxc4 {[%clk 0:00:38.2]} 18. Rc1 {[%clk 0:00:25.8]} 18... Ne7 {[%clk 0:00:36.3]} 19. Qa4+ {[%clk 0:00:21.9]} 19... Kf7 {[%clk 0:00:33.7]} 20. Nxd6+ {[%clk 0:00:18]} 20... Qxd6 {[%clk 0:00:30.2]} 21. Bxb6 {[%clk 0:00:17.3]} 21... axb6 {[%clk 0:00:26.4]} 22. Qc2 {[%clk 0:00:17]} 22... Bxf1 {[%clk 0:00:24.2]} 23. f5 {[%clk 0:00:16.7]} 23... Qd7 {[%clk 0:00:20.3]} 24. Rxf1 {[%clk 0:00:16.1]} 24... Rac8 {[%clk 0:00:19.5]} 25. Qe4 {[%clk 0:00:14.9]} 25... Rce8 {[%clk 0:00:17.8]} 26. Qg4 {[%clk 0:00:14.5]} 26... g5 {[%clk 0:00:15.7]} 27. Qh5+ {[%clk 0:00:13.7]} 27... Ng6 {[%clk 0:00:14.7]} 28. fxg6+ {[%clk 0:00:12.2]} 28... hxg6 {[%clk 0:00:14.3]} 29. Qxg5 {[%clk 0:00:09.2]} 29... Qd6 {[%clk 0:00:12.9]} 30. Qf4 {[%clk 0:00:07.8]} 30... Qxd5 {[%clk 0:00:08.2]} 31. Qc7+ {[%clk 0:00:05.9]} 31... Re7 {[%clk 0:00:06.4]} 32. Qxb6 {[%clk 0:00:05.3]} 32... Re6 {[%clk 0:00:02.6]} 33. Qc7+ {[%clk 0:00:04.1]} 33... Re7 {[%clk 0:00:01.9]} 34. Qf4 {[%clk 0:00:03.5]} 1-0

[Event "Live Chess"]
[Site "Chess.com"]
[Date "2011.01.28"]
[Round "-"]
[White "TimArnett"]
[Black "hipposcottimus"]
[Result "0-1"]
[CurrentPosition "r4rk1/ppp3pp/8/2q1Pp2/3n4/P1PPQNP1/1Pb3BP/1K5R w - -"]
[Timezone "UTC"]
[ECO "A00"]
[ECOUrl "https://www.chess.com/openings/Kings-Fianchetto-Opening-1...e5"]
[UTCDate "2011.01.28"]
[UTCTime "23:05:35"]
[WhiteElo "1556"]
[BlackElo "1541"]
[TimeControl "60"]
[Termination "hipposcottimus won on time"]
[StartTime "23:05:35"]
[EndDate "2011.01.28"]
[EndTime "23:07:22"]
[Link "https://www.chess.com/game/live/92420745"]

1. g3 {[%clk 0:01:00]} 1... e5 {[%clk 0:01:00]} 2. e4 {[%clk 0:00:38.4]} 2... Nc6 {[%clk 0:00:57.9]} 3. Bg2 {[%clk 0:00:37.6]} 3... Nf6 {[%clk 0:00:56.7]} 4. Nc3 {[%clk 0:00:35.5]} 4... d5 {[%clk 0:00:56.3]} 5. exd5 {[%clk 0:00:34]} 5... Nb4 {[%clk 0:00:55.7]} 6. d6 {[%clk 0:00:32.1]} 6... Bxd6 {[%clk 0:00:51.9]} 7. a3 {[%clk 0:00:29.4]} 7... Nc6 {[%clk 0:00:49.8]} 8. d3 {[%clk 0:00:28]} 8... Bg4 {[%clk 0:00:48.3]} 9. f3 {[%clk 0:00:24.9]} 9... Bd7 {[%clk 0:00:47.9]} 10. Bg5 {[%clk 0:00:24]} 10... O-O {[%clk 0:00:47.6]} 11. Qe2 {[%clk 0:00:21.3]} 11... Be7 {[%clk 0:00:45.8]} 12. Ne4 {[%clk 0:00:17.5]} 12... Nxe4 {[%clk 0:00:44.7]} 13. Bxe7 {[%clk 0:00:16.6]} 13... Qxe7 {[%clk 0:00:39.7]} 14. Qxe4 {[%clk 0:00:16.3]} 14... f5 {[%clk 0:00:39.4]} 15. Qe3 {[%clk 0:00:12]} 15... Nd4 {[%clk 0:00:39.1]} 16. O-O-O {[%clk 0:00:09.8]} 16... Qc5 {[%clk 0:00:35.4]} 17. c3 {[%clk 0:00:08.7]} 17... Nb3+ {[%clk 0:00:33]} 18. Kb1 {[%clk 0:00:07.2]} 18... Ba4 {[%clk 0:00:30.1]} 19. f4 {[%clk 0:00:04.7]} 19... Nd4 {[%clk 0:00:27.3]} 20. fxe5 {[%clk 0:00:02.4]} 20... Bxd1 {[%clk 0:00:24.7]} 21. Nf3 {[%clk 0:00:00.1]} 21... Bc2+ {[%clk 0:00:23.5]} 0-1

[Event "Live Chess"]
[Site "Chess.com"]
[Date "2011.01.28"]
[Round "-"]
[White "hipposcottimus"]
[Black "TimArnett"]
[Result "1-0"]
[CurrentPosition "3r3r/3qb1p1/1k1p1p2/1P2nP2/1P1QPB1p/8/6PP/2R2RK1 b - -"]
[Timezone "UTC"]
[ECO "C50"]
[ECOUrl "https://www.chess.com/openings/Italian-Game-3...d6-4.d4-Bg4"]
[UTCDate "2011.01.28"]
[UTCTime "23:03:17"]
[WhiteElo "1541"]
[BlackElo "1556"]
[TimeControl "60"]
[Termination "hipposcottimus won on time"]
[StartTime "23:03:17"]
[EndDate "2011.01.28"]
[EndTime "23:05:18"]
[Link "https://www.chess.com/game/live/92420178"]

1. e4 {[%clk 0:01:00]} 1... e5 {[%clk 0:01:00]} 2. Nf3 {[%clk 0:00:58]} 2... Nc6 {[%clk 0:00:59.3]} 3. Bc4 {[%clk 0:00:55.7]} 3... d6 {[%clk 0:00:57.2]} 4. d4 {[%clk 0:00:53.8]} 4... Bg4 {[%clk 0:00:56.6]} 5. dxe5 {[%clk 0:00:53.1]} 5... Bxf3 {[%clk 0:00:55.7]} 6. Qxf3 {[%clk 0:00:52.7]} 6... Nxe5 {[%clk 0:00:54.9]} 7. Qb3 {[%clk 0:00:49]} 7... Nh6 {[%clk 0:00:50.8]} 8. f4 {[%clk 0:00:47.7]} 8... Nxc4 {[%clk 0:00:48.7]} 9. Qxc4 {[%clk 0:00:46.4]} 9... Qd7 {[%clk 0:00:45]} 10. O-O {[%clk 0:00:45.3]} 10... O-O-O {[%clk 0:00:44.6]} 11. Nc3 {[%clk 0:00:44.8]} 11... Be7 {[%clk 0:00:42.8]} 12. Nd5 {[%clk 0:00:44.3]} 12... Ng4 {[%clk 0:00:37.5]} 13. f5 {[%clk 0:00:43.7]} 13... Ne5 {[%clk 0:00:33.5]} 14. Qb3 {[%clk 0:00:42.9]} 14... f6 {[%clk 0:00:31.2]} 15. c4 {[%clk 0:00:41.8]} 15... c6 {[%clk 0:00:30.7]} 16. Qb6 {[%clk 0:00:34.4]} 16... cxd5 {[%clk 0:00:27.7]} 17. Qxa7 {[%clk 0:00:32.8]} 17... b5 {[%clk 0:00:23.6]} 18. Qa8+ {[%clk 0:00:27.5]} 18... Kc7 {[%clk 0:00:22.9]} 19. Qxd5 {[%clk 0:00:26.6]} 19... Ng4 {[%clk 0:00:18.5]} 20. cxb5 {[%clk 0:00:25.1]} 20... h5 {[%clk 0:00:15.3]} 21. Bf4 {[%clk 0:00:23.3]} 21... h4 {[%clk 0:00:12.9]} 22. Rac1+ {[%clk 0:00:20.7]} 22... Kb6 {[%clk 0:00:08.8]} 23. a4 {[%clk 0:00:15.5]} 23... Ne5 {[%clk 0:00:05.6]} 24. a5+ {[%clk 0:00:15.1]} 24... Kxa5 {[%clk 0:00:03.4]} 25. b4+ {[%clk 0:00:13.2]} 25... Kb6 {[%clk 0:00:01.7]} 26. Qd4+ {[%clk 0:00:11]} 1-0